fUSD/lending_fUSD_20251123
["ID","MTS","AMOUNT","RATE_DAILY","PERIOD"]
[394741804,1763923844672,-500.0,0.00038356,8]
[394741805,1763923844681,-500.0,0.00038356,8]
[394741806,1763923844695,-500.0,0.00038356,8]
[394741807,1763923844713,-500.0,0.00038356,8]
[394741808,1763923844722,-500.0,0.00038356,8]
[394741809,1763923844731,-500.0,0.00038356,8]
[394741810,1763923844741,-500.0,0.00038356,8]
[394741811,1763923844749,-500.0,0.00038356,8]
[394741812,1763923844759,-500.0,0.00038356,8]
[394741813,1763923844768,-500.0,0.00038356,8]
[394741814,1763923844777,-500.0,0.00038356,8]
[394741815,1763923844786,-500.0,0.00038356,8]
[394741816,1763923844795,-535.28,0.00038356,8]
[394741817,1763923844804,-500.0,0.00038356,8]
[394741818,1763923844814,-500.0,0.00038356,8]
[394741819,1763923844824,-500.0,0.00038356,8]
[394741820,1763923844832,-810.12,0.00038356,8]
[394741821,1763923844841,-500.0,0.00038356,8]
[394741822,1763923844850,-543.13,0.00038356,8]
[394741823,1763923844859,-500.0,0.00038356,8]
[394741824,1763923844869,-500.0,0.00038356,8]
[394741825,1763923844878,-500.0,0.00038356,8]
[394741826,1763923844888,-622.21,0.00038356,8]
[394741827,1763923844898,-1082.92,0.00038356,8]
[394741828,1763923844907,-500.0,0.00038356,8]
[394741829,1763923844915,-500.0,0.00038356,8]
[394741830,1763923844924,-500.0,0.00038356,8]
[394741831,1763923844933,-679.95,0.00038356,8]
[394741832,1763923844943,-500.0,0.00038356,8]
[394741833,1763923844953,-500.0,0.00038356,8]
[394741834,1763923844962,-540.3,0.00038356,8]
[394741835,1763923844973,-500.0,0.00038356,8]
[394741836,1763923844983,-500.0,0.00038356,8]
[394741837,1763923844992,-638.51,0.00038356,8]
[394741838,1763923845001,-704.27,0.00038356,8]
[394741839,1763923845011,-500.0,0.00038356,8]
[394741840,1763923845020,-500.0,0.00038356,8]
[394741841,1763923845030,-500.0,0.00038356,8]
[394741842,1763923845039,-500.0,0.00038356,8]
[394741843,1763923845049,-500.0,0.00038356,8]
[394741844,1763923845058,-540.92,0.00038356,8]
[394741845,1763923845068,-500.0,0.00038356,8]
[394741846,1763923845077,-500.0,0.00038356,8]
[394741847,1763923845086,-512.36582801,0.00038356,8]
[394741848,1763923845095,-500.0,0.00038356,8]
[394741849,1763923845103,-500.0,0.00038356,8]
[394741850,1763923845114,-545.27,0.00038356,8]
[394741851,1763923845124,-500.0,0.00038356,8]
[394741852,1763923845133,-500.0,0.00038356,8]
[394741853,1763923845143,-527.34,0.00038356,8]
[394741854,1763923845152,-500.0,0.00038356,8]
[394741855,1763923845162,-500.0,0.00038356,8]
[394741856,1763923845172,-500.0,0.00038356,8]
[394741857,1763923845182,-500.0,0.00038356,8]
[394741858,1763923845191,-500.0,0.00038356,8]
[394741859,1763923845201,-500.0,0.00038356,8]
[394741860,1763923845211,-500.0,0.00038356,8]
[394741861,1763923845221,-500.0,0.00038356,8]
[394741862,1763923845233,-500.0,0.00038356,8]
[394741863,1763923845242,-500.0,0.00038356,8]
[394741864,1763923845253,-500.0,0.00038356,8]
[394741865,1763923845262,-500.0,0.00038356,8]
[394741866,1763923845272,-561.94,0.00038356,8]
[394741867,1763923845281,-500.0,0.00038356,8]
[394741868,1763923845291,-500.0,0.00038356,8]
[394741869,1763923845301,-714.21,0.00038356,8]
[394741870,1763923845311,-500.0,0.00038356,8]
[394741871,1763923845320,-500.0,0.00038356,8]
[394741872,1763923845330,-500.0,0.00038356,8]
[394741873,1763923845339,-500.0,0.00038356,8]
[394741874,1763923845349,-500.0,0.00038356,8]
[394741875,1763923845359,-615.01,0.00038356,8]
[394741876,1763923845369,-500.0,0.00038356,8]
[394741877,1763923845378,-500.0,0.00038356,8]
[394741878,1763923845389,-509.13,0.00038356,8]
[394741879,1763923845399,-500.0,0.00038356,8]
[394741881,1763923845409,-640.64695542,0.00038356,8]
[394741883,1763923845419,-500.0,0.00038356,8]
[394741885,1763923845428,-500.0,0.00038356,8]
[394741887,1763923845437,-500.0,0.00038356,8]
[394741889,1763923845446,-500.0,0.00038356,8]
[394741891,1763923845456,-500.0,0.00038356,8]
[394741892,1763923845465,-500.0,0.00038356,8]
[394741893,1763923845475,-637.07857148,0.00038356,8]
[394741894,1763923845485,-500.0,0.00038356,8]
[394741895,1763923845494,-586.1,0.00038356,8]
[394741896,1763923845503,-500.0,0.00038356,8]
[394741897,1763923845513,-500.0,0.00038356,8]
[394741898,1763923845522,-7625.12,0.00038356,8]
[394741899,1763923845531,-500.0,0.00038356,8]
[394741900,1763923845541,-500.0,0.00038356,8]
[394741901,1763923845551,-500.0,0.00038356,8]
[394741902,1763923845560,-500.0,0.00038356,8]
[394741903,1763923845569,-500.0,0.00038356,8]
[394741904,1763923845578,-500.0,0.00038356,8]
[394741905,1763923845588,-500.0,0.00038356,8]
[394741906,1763923845597,-801.75,0.00038356,8]
[394741907,1763923845607,-500.0,0.00038356,8]
[394741908,1763923845620,-500.0,0.00038356,8]
[394741909,1763923845635,-500.0,0.00038356,8]
[394741910,1763923845650,-500.0,0.00038356,8]
[394741911,1763923845661,-500.0,0.00038356,8]
[394741912,1763923845670,-500.0,0.00038356,8]
[394741913,1763923845680,-500.0,0.00038356,8]
[394741914,1763923845691,-500.0,0.00038356,8]
[394741915,1763923845700,-500.0,0.00038356,8]
[394741916,1763923845709,-464.25094245,0.00038356,8]
[394741917,1763923845718,-771.58,0.00038356,8]
[394741918,1763923845727,-688.07,0.00038356,8]
[394741919,1763923845737,-500.0,0.00038356,8]
[394741920,1763923845746,-500.0,0.00038356,2]
[394741921,1763923845755,-500.0,0.00038356,8]
[394741922,1763923845765,-500.0,0.00038356,8]
[394741923,1763923845774,-524.42,0.00038356,8]
[394741924,1763923845783,-517.27736781,0.00038356,8]
[394741925,1763923845793,-500.0,0.00038356,8]
[394741926,1763923845802,-500.0,0.00038356,8]
[394741927,1763923845811,-500.0,0.00038356,8]
[394741928,1763923845820,-500.0,0.00038356,8]
[394741929,1763923845830,-500.0,0.00038356,8]
[394741930,1763923845838,-500.0,0.00038356,8]
[394741931,1763923845847,-500.0,0.00038356,8]
[394741932,1763923845856,-500.0,0.00038356,8]
[394741933,1763923845865,-500.0,0.00038356,8]
[394741934,1763923845873,-500.0,0.00038356,8]
[394741935,1763923845882,-500.0,0.00038356,8]
[394741936,1763923845891,-966.8,0.00038356,8]
[394741937,1763923845900,-500.0,0.00038356,8]
[394741938,1763923845913,-500.0,0.00038356,8]
[394741939,1763923845922,-589.06,0.00038356,8]
[394741940,1763923845931,-679.87,0.00038356,8]
[394741941,1763923845939,-500.0,0.00038356,8]
[394741942,1763923845948,-500.0,0.00038356,8]
[394741943,1763923845957,-500.0,0.00038356,8]
[394741944,1763923845966,-500.0,0.00038356,8]
[394741945,1763923845975,-500.0,0.00038356,8]
[394741946,1763923845984,-500.0,0.00038356,8]
[394741947,1763923845993,-1059.28,0.00038356,8]
[394741948,1763923846003,-905.43,0.00038356,8]
[394741949,1763923846012,-500.0,0.00038356,8]
[394741950,1763923846021,-500.0,0.00038356,8]
[394741951,1763923846030,-500.0,0.00038356,8]
[394741952,1763923846039,-821.86,0.00038356,8]
[394741953,1763923846049,-656.75,0.00038356,8]
[394741954,1763923846061,-592.62,0.00038356,8]
[394741955,1763923846070,-500.0,0.00038356,8]
[394741956,1763923846079,-500.0,0.00038356,8]
[394741957,1763923846089,-500.0,0.00038356,8]
[394741958,1763923846098,-500.0,0.00038356,8]
[394741959,1763923846108,-500.0,0.00038356,8]
[394741960,1763923846117,-1198.3,0.00038356,8]
[394741961,1763923846126,-500.0,0.00038356,8]
[394741962,1763923846136,-500.0,0.00038356,8]
[394741963,1763923846146,-500.0,0.00038356,8]
[394741964,1763923846155,-421.96008545,0.00038356,8]
[394741965,1763923846164,-500.0,0.00038356,8]
[394741966,1763923846173,-500.0,0.00038356,8]
[394741967,1763923846183,-500.0,0.00038356,8]
[394741968,1763923846192,-641.73675556,0.00038356,8]
[394741969,1763923846203,-180.24951284,0.00038356,8]
[394741970,1763923846213,-500.0,0.00038356,8]
[394741971,1763923846223,-500.0,0.00038356,8]
[394741972,1763923846233,-794.04,0.00038356,8]
[394741973,1763923846242,-500.0,0.00038356,8]
[394741974,1763923846251,-500.0,0.00038356,8]
[394741975,1763923846261,-2136.94,0.00038356,8]
[394741976,1763923846270,-500.0,0.00038356,8]
[394741977,1763923846279,-677.0,0.00038356,8]
[394741978,1763923846288,-694.1,0.00038356,8]
[394741979,1763923846298,-500.0,0.00038356,8]
[394741981,1763923846307,-500.0,0.00038356,8]
[394741982,1763923846316,-500.0,0.00038356,8]
[394741983,1763923846326,-500.0,0.00038356,8]
[394741984,1763923846335,-880.0,0.00038356,8]
[394741985,1763923846344,-500.0,0.00038356,8]
[394741986,1763923846353,-500.0,0.00038356,8]
[394741987,1763923846363,-500.0,0.00038356,8]
[394741988,1763923846372,-500.0,0.00038356,8]
[394741989,1763923846381,-1020.71,0.00038356,8]
[394741990,1763923846390,-500.0,0.00038356,8]
[394741991,1763923846400,-941.03,0.00038356,8]
[394741992,1763923846410,-500.0,0.00038356,8]
[394741993,1763923846420,-804.18,0.00038356,8]
[394741994,1763923846429,-500.0,0.00038356,8]
[394741995,1763923846439,-500.0,0.00038356,8]
[394741996,1763923846449,-500.0,0.00038356,8]
[394741997,1763923846458,-500.0,0.00038356,8]
[394741998,1763923846468,-500.0,0.00038356,8]
[394741999,1763923846477,-700.0,0.00038356,120]
[394742000,1763923846488,-500.0,0.00038356,8]
[394742001,1763923846497,-623.99,0.00038356,8]
[394742002,1763923846507,-500.0,0.00038356,8]
[394742003,1763923846516,-500.0,0.00038356,8]
[394742004,1763923846528,-1319.4,0.00038356,8]
[394742005,1763923846537,-500.0,0.00038356,8]
[394742006,1763923846546,-500.0,0.00038356,8]
[394742007,1763923846555,-500.0,0.00038356,8]
[394742008,1763923846564,-500.0,0.00038356,8]
[394742009,1763923846573,-553.46,0.00038356,8]
[394742010,1763923846583,-500.0,0.00038356,8]
[394742011,1763923846593,-500.0,0.00038356,8]
[394742012,1763923846602,-500.0,0.00038356,8]
[394742013,1763923846612,-500.0,0.00038356,8]
[394742014,1763923846625,-1097.8,0.00038356,8]
[394742015,1763923846635,-774.15,0.00038356,8]
[394742016,1763923846644,-500.0,0.00038356,8]
[394742017,1763923846654,-500.0,0.00038356,8]
[394742018,1763923846663,-500.0,0.00038356,8]
[394742019,1763923846672,-500.0,0.00038356,8]
[394742020,1763923846683,-500.0,0.00038356,8]
[394742021,1763923846695,-962.11,0.00038356,8]
[394742022,1763923846704,-500.0,0.00038356,8]
[394742023,1763923846714,-500.0,0.00038356,8]
[394742024,1763923846724,-500.0,0.00038356,8]
[394742025,1763923846734,-500.0,0.00038356,8]
[394742026,1763923846743,-500.0,0.00038356,8]
[394742027,1763923846753,-1077.55,0.00038356,8]
[394742028,1763923846762,-500.0,0.00038356,8]
[394742029,1763923846771,-317.43403473,0.00038356,8]
[394742030,1763923846780,-500.0,0.00038356,8]
[394742031,1763923846789,-500.0,0.00038356,8]
[394742033,1763923846798,-500.0,0.00038356,8]
[394742034,1763923846807,-561.67,0.00038356,8]
[394742036,1763923846816,-585.49,0.00038356,8]
[394742038,1763923846826,-500.0,0.00038356,8]
[394742040,1763923846835,-2091.21,0.00038356,8]
[394742041,1763923846844,-500.0,0.00038356,8]
[394742042,1763923846854,-500.0,0.00038356,8]
[394742043,1763923846863,-500.0,0.00038356,8]
[394742044,1763923846872,-500.0,0.00038356,8]
[394742045,1763923846881,-713.1,0.00038356,8]
[394742046,1763923846890,-648.26,0.00038356,8]
[394742047,1763923846899,-500.0,0.00038356,8]
[394742048,1763923846908,-867.3,0.00038356,8]
[394742049,1763923846919,-500.0,0.00038356,8]
[394742050,1763923846928,-500.0,0.00038356,8]
[394742051,1763923846937,-500.0,0.00038356,8]
[394742052,1763923846947,-530.34,0.00038356,8]
[394742053,1763923846956,-500.0,0.00038356,8]
[394742054,1763923846967,-1000.0,0.00038356,120]
[394742055,1763923846977,-500.0,0.00038356,8]
[394742056,1763923846987,-500.0,0.00038356,8]
[394742057,1763923846996,-500.0,0.00038356,8]
[394742058,1763923847006,-547.82,0.00038356,8]
[394742059,1763923847015,-500.0,0.00038356,8]
[394742060,1763923847024,-500.0,0.00038356,8]
[394742061,1763923847034,-500.0,0.00038356,8]
[394742062,1763923847043,-500.0,0.00038356,8]
[394742063,1763923847052,-500.0,0.00038356,8]
[394742064,1763923847061,-500.0,0.00038356,8]
[394742065,1763923847072,-839.18,0.00038356,8]
[394742066,1763923847082,-500.0,0.00038356,8]
[394742067,1763923847092,-500.0,0.00038356,8]
[394742068,1763923847101,-500.0,0.00038356,8]
[394742069,1763923847111,-500.0,0.00038356,8]
[394742070,1763923847120,-500.0,0.00038356,8]
[394742071,1763923847129,-500.0,0.00038356,8]
[394742072,1763923847139,-500.0,0.00038356,8]
[394742073,1763923847149,-500.0,0.00038356,8]
[394742074,1763923847158,-500.0,0.00038356,8]
[394742075,1763923847167,-500.0,0.00038356,8]
[394742076,1763923847176,-500.0,0.00038356,8]
[394742077,1763923847186,-500.0,0.00038356,8]
[394742078,1763923847195,-598.7,0.00038356,8]
[394742079,1763923847204,-500.0,0.00038356,8]
[394742080,1763923847213,-500.0,0.00038356,8]
[394742081,1763923847223,-521.4,0.00038356,8]
[394742082,1763923847232,-500.0,0.00038356,8]
[394742083,1763923847242,-500.0,0.00038356,8]
[394742084,1763923847251,-618.66,0.00038356,8]
[394742085,1763923847261,-239.89518981,0.00038356,8]
[394742086,1763923847271,-500.0,0.00038356,8]
[394742087,1763923847280,-500.0,0.00038356,8]
[394742088,1763923847289,-500.0,0.00038356,8]
[394742089,1763923847300,-537.83,0.00038356,8]
[394742090,1763923847309,-1378.01,0.00038356,8]
[394742091,1763923847318,-500.0,0.00038356,8]
[394742092,1763923847327,-500.0,0.00038356,8]
[394742093,1763923847337,-500.0,0.00038356,8]
[394742094,1763923847346,-652.96,0.00038356,8]
[394742095,1763923847355,-500.0,0.00038356,8]
[394742096,1763923847364,-500.0,0.00038356,8]
[394742097,1763923847373,-500.0,0.00038356,8]
[394742098,1763923847383,-500.0,0.00038356,8]
[394742099,1763923847392,-564.35,0.00038356,8]
[394742100,1763923847401,-500.0,0.00038356,8]
[394742101,1763923847410,-500.0,0.00038356,8]
[394742102,1763923847419,-500.0,0.00038356,8]
[394742103,1763923847428,-500.0,0.00038356,8]
[394742104,1763923847437,-500.0,0.00038356,8]
[394742105,1763923847447,-1000.0,0.00038356,8]
[394742106,1763923847456,-500.0,0.00038356,8]
[394742107,1763923847466,-564.7,0.00038356,8]
[394742108,1763923847475,-500.0,0.00038356,8]
[394742109,1763923847485,-500.0,0.00038356,8]
[394742110,1763923847494,-561.24,0.00038356,8]
[394742111,1763923847503,-500.0,0.00038356,8]
[394742112,1763923847513,-500.0,0.00038356,8]
[394742113,1763923847522,-500.0,0.00038356,8]
[394742114,1763923847531,-508.19,0.00038356,8]
[394742115,1763923847541,-500.0,0.00038356,8]
[394742116,1763923847551,-500.0,0.00038356,8]
[394742117,1763923847561,-844.56,0.00038356,8]
[394742118,1763923847570,-500.0,0.00038356,8]
[394742119,1763923847580,-500.0,0.00038356,8]
[394742120,1763923847589,-1293.64,0.00038356,8]
[394742121,1763923847599,-985.42,0.00038356,8]
[394742122,1763923847609,-500.0,0.00038356,8]
[394742123,1763923847622,-438.69693562,0.00038356,8]
[394742124,1763923848266,-175.08306438,0.00038356,8]
[394742125,1763923848276,-500.0,0.00038356,8]
[394742126,1763923848286,-90.36227714,0.00038356,8]
[394742127,1763923848298,-409.63772286,0.00038356,8]
[394742128,1763923848308,-1174.03,0.00038356,8]
[394742129,1763923848318,-500.0,0.00038356,8]
[394742130,1763923848328,-249.33227714,0.00038356,8]
[394742131,1763923848341,-250.66772286,0.00038356,8]
[394742132,1763923848351,-500.0,0.00038356,8]
[394742133,1763923848360,-500.0,0.00038356,8]
[394742134,1763923848370,-168.574458,0.00038356,8]
[394742135,1763923848380,-500.0,0.00038356,8]
[394742136,1763923848390,-513.28,0.00038356,8]
[394742137,1763923848400,-504.73,0.00038356,8]
[394742138,1763923848409,-582.0,0.00038356,8]
[394742139,1763923848419,-674.52,0.00038356,8]
[394742140,1763923848428,-500.0,0.00038356,8]
[394742141,1763923848438,-121.77781914,0.00038356,8]
[394742142,1763923848580,-378.22218086,0.00038356,8]
[394742143,1763923848590,-500.0,0.00038356,8]
[394742144,1763923848600,-646.59943664,0.00038356,8]
[394742145,1763923848610,-500.0,0.00038356,8]
[394742146,1763923848624,-215.38884658,0.00038356,8]
[394742147,1763923849480,-311.53201472,0.00034734,72]
[394742148,1763923849490,-186.10277052,0.00037247,2]
[394742149,1763923849501,-115.61722948,0.00037247,2]
[394742150,1763923849511,-284.61115342,0.00038356,8]
[394742151,1763923849520,-500.0,0.00038356,8]
[394742152,1763923849530,-251.37467877,0.00038356,8]
[394742153,1763923850051,-248.62532123,0.00038356,8]
[394742154,1763923850061,-227.72692286,0.00038356,8]
[394742155,1763923850072,-272.27307714,0.00038356,8]
[394742156,1763923850082,-626.44,0.00038356,8]
[394742157,1763923850092,-500.0,0.00038356,8]
[394742158,1763923850102,-500.0,0.00038356,8]
[394742159,1763923850111,-635.23,0.00038356,8]
[394742160,1763923850120,-500.0,0.00038356,8]
[394742161,1763923850130,-500.0,0.00038356,8]
[394742162,1763923850140,-500.0,0.00038356,8]
[394742163,1763923850149,-500.0,0.00038356,8]
[394742164,1763923850159,-774.49,0.00038356,8]
[394742165,1763923850168,-500.0,0.00038356,8]
[394742166,1763923850177,-831.49,0.00038356,8]
[394742167,1763923850187,-1024.6,0.00038356,8]
[394742168,1763923850196,-500.0,0.00038356,8]
[394742169,1763923850206,-500.0,0.00038356,8]
[394742170,1763923850216,-500.0,0.00038356,8]
[394742171,1763923850226,-500.0,0.00038356,8]
[394742172,1763923850237,-500.0,0.00038356,8]
[394742173,1763923850246,-500.0,0.00038356,8]
[394742174,1763923850256,-500.0,0.00038356,8]
[394742175,1763923850265,-500.0,0.00038356,8]
[394742176,1763923850275,-500.0,0.00038356,8]
[394742177,1763923850284,-500.0,0.00038356,8]
[394742178,1763923850293,-500.0,0.00038356,8]
[394742179,1763923850303,-500.0,0.00038356,8]
[394742180,1763923850313,-1407.63,0.00038356,8]
[394742181,1763923850322,-500.0,0.00038356,8]
[394742182,1763923850331,-500.0,0.00038356,8]
[394742183,1763923850341,-500.0,0.00038356,8]
[394742184,1763923850350,-500.0,0.00038356,8]
[394742185,1763923850359,-500.0,0.00038356,8]
[394742186,1763923850369,-641.27,0.00038356,8]
[394742187,1763923850378,-826.49,0.00038356,8]
[394742188,1763923850393,-500.0,0.00038356,8]
[394742189,1763923850403,-500.0,0.00038356,8]
[394742190,1763923850414,-718.86,0.00038356,8]
[394742191,1763923850424,-605.91,0.00038356,8]
[394742192,1763923850434,-500.0,0.00038356,8]
[394742193,1763923850445,-500.0,0.00038356,8]
[394742194,1763923850455,-500.0,0.00038356,8]
[394742195,1763923850465,-1028.12,0.00038356,8]
[394742196,1763923850475,-500.0,0.00038356,8]
[394742197,1763923850485,-288.67727294,0.00038356,8]
[394742198,1763923850496,-1732.24,0.00038356,8]
[394742199,1763923850506,-500.0,0.00038356,8]
[394742200,1763923850516,-500.0,0.00038356,8]
[394742201,1763923850526,-616.51,0.00038356,8]
[394742202,1763923850536,-1328.35,0.00038356,8]
[394742203,1763923850547,-980.16,0.00038356,8]
[394742204,1763923850557,-500.0,0.00038356,8]
[394742205,1763923850567,-500.0,0.00038356,8]
[394742206,1763923850577,-500.0,0.00038356,8]
[394742207,1763923850587,-510.91,0.00038356,8]
[394742208,1763923850596,-316.02223346,0.00038356,8]
[394742209,1763923850607,-500.0,0.00038356,8]
[394742210,1763923850618,-500.0,0.00038356,8]
[394742211,1763923850630,-691.81,0.00038356,8]
[394742212,1763923850639,-503.02,0.00038356,8]
[394742213,1763923850649,-500.0,0.00038356,8]
[394742214,1763923850660,-500.0,0.00038356,8]
[394742215,1763923850671,-500.0,0.00038356,8]
[394742216,1763923850681,-945.24,0.00038356,8]
[394742217,1763923850691,-500.0,0.00038356,8]
[394742218,1763923850703,-500.0,0.00038356,8]
[394742219,1763923850712,-1486.81,0.00038356,8]
[394742220,1763923850722,-500.0,0.00038356,8]
[394742221,1763923850732,-637.63,0.00038356,8]
[394742222,1763923850742,-500.0,0.00038356,8]
[394742223,1763923850752,-671.06,0.00038356,8]
[394742224,1763923850762,-500.0,0.00038356,8]
[394742225,1763923850772,-500.37,0.00038356,8]
[394742226,1763923850782,-500.0,0.00038356,8]
[394742227,1763923850792,-500.0,0.00038356,8]
[394742228,1763923850801,-500.0,0.00038356,8]
[394742229,1763923850812,-518.88,0.00038356,8]
[394742230,1763923850822,-500.0,0.00038356,8]
[394742231,1763923850832,-500.0,0.00038356,8]
[394742232,1763923850841,-631.91,0.00038356,8]
[394742233,1763923850851,-500.0,0.00038356,8]
[394742234,1763923850862,-500.0,0.00038356,8]
[394742235,1763923850872,-500.0,0.00038356,8]
[394742236,1763923850882,-500.0,0.00038356,8]
[394742237,1763923850892,-500.0,0.00038356,8]
[394742238,1763923850901,-500.0,0.00038356,8]
[394742239,1763923850911,-500.0,0.00038356,8]
[394742240,1763923850920,-516.39,0.00038356,8]
[394742241,1763923850930,-500.0,0.00038356,8]
[394742242,1763923850940,-500.0,0.00038356,8]
[394742243,1763923850949,-500.0,0.00038356,8]
[394742244,1763923850959,-650.85,0.00038356,8]
[394742245,1763923850969,-892.05,0.00038356,8]
[394742246,1763923850978,-500.0,0.00038356,8]
[394742247,1763923850989,-1001.34,0.00038356,8]
[394742248,1763923850998,-542.25935123,0.00038356,8]
[394742249,1763923851009,-500.0,0.00038356,8]
[394742250,1763923851019,-500.0,0.00038356,8]
[394742251,1763923851028,-500.0,0.00038356,8]
[394742252,1763923851039,-500.0,0.00038356,8]
[394742253,1763923851048,-733.61,0.00038356,8]
[394742254,1763923851058,-1337.53,0.00038356,8]
[394742255,1763923851070,-500.0,0.00038356,8]
[394742256,1763923851080,-1123.45,0.00038356,8]
[394742257,1763923851089,-586.22,0.00038356,8]
[394742258,1763923851099,-617.86963309,0.00038356,8]
[394742259,1763923851109,-500.0,0.00038356,8]
[394742260,1763923851118,-606.86,0.00038356,8]
[394742261,1763923851128,-500.0,0.00038356,8]
[394742262,1763923851137,-500.0,0.00038356,2]
[394742263,1763923851147,-500.0,0.00038356,8]
[394742264,1763923851157,-500.0,0.00038356,8]
[394742265,1763923851166,-500.0,0.00038356,8]
[394742266,1763923851175,-500.0,0.00038356,8]
[394742267,1763923851186,-500.0,0.00038356,8]
[394742268,1763923851196,-2030.17,0.00038356,8]
[394742269,1763923851206,-500.0,0.00038356,8]
[394742270,1763923851216,-588.08,0.00038356,8]
[394742271,1763923851226,-1001.39,0.00038356,8]
[394742272,1763923851236,-567.98,0.00038356,14]
[394742273,1763923851245,-500.0,0.00038356,8]
[394742274,1763923851255,-500.0,0.00038356,8]
[394742275,1763923851266,-500.0,0.00038356,8]
[394742276,1763923851276,-527.62,0.00038356,8]
[394742277,1763923851286,-500.0,0.00038356,8]
[394742278,1763923851296,-500.0,0.00038356,8]
[394742279,1763923851306,-500.0,0.00038356,8]
[394742280,1763923851316,-500.0,0.00038356,8]
[394742281,1763923851325,-500.0,0.00038356,8]
[394742282,1763923851335,-500.0,0.00038356,8]
[394742283,1763923851344,-500.0,0.00038356,8]
[394742284,1763923851355,-534.96,0.00038356,8]
[394742285,1763923851366,-500.0,0.00038356,8]
[394742286,1763923851375,-500.0,0.00038356,8]
[394742287,1763923851386,-592.52,0.00038356,8]
[394742288,1763923851395,-500.0,0.00038356,8]
[394742289,1763923851404,-500.0,0.00038356,8]
[394742290,1763923851414,-500.0,0.00038356,8]
[394742291,1763923851424,-500.0,0.00038356,8]
[394742292,1763923851434,-556.03,0.00038356,8]
[394742293,1763923851444,-536.15,0.00038356,8]
[394742294,1763923851454,-581.32,0.00038356,8]
[394742295,1763923851463,-500.0,0.00038356,8]
[394742296,1763923851474,-500.0,0.00038356,8]
[394742297,1763923851483,-500.0,0.00038356,8]
[394742298,1763923851493,-500.0,0.00038356,8]
[394742299,1763923851503,-5004.87,0.00038356,8]
[394742300,1763923851513,-267.35916519,0.00038356,8]
[394742301,1763923851522,-667.34,0.00038356,8]
[394742302,1763923851532,-500.0,0.00038356,8]
[394742303,1763923851542,-855.74,0.00038356,8]
[394742304,1763923851551,-500.0,0.00038356,8]
[394742305,1763923851560,-651.77,0.00038356,8]
[394742306,1763923851570,-500.0,0.00038356,8]
[394742307,1763923851580,-500.0,0.00038356,8]
[394742308,1763923851590,-500.0,0.00038356,8]
[394742309,1763923851599,-500.0,0.00038356,8]
[394742310,1763923851609,-500.0,0.00038356,8]
[394742311,1763923851620,-500.0,0.00038356,8]
[394742312,1763923851629,-500.0,0.00038356,8]
[394742313,1763923851639,-500.0,0.00038356,8]
[394742314,1763923851648,-500.0,0.00038356,8]